bitfinex/quotes_BTCUSD_20241117
["timestamp","ask_amount","ask_price","bid_price","bid_amount"]
[1731853659042,0.110688,90344.0,90332.0,0.115702]
[1731853659259,0.110688,90344.0,90334.0,0.110699]
[1731853659260,0.10906255,90344.0,90334.0,0.110699]
[1731853659471,0.10906255,90344.0,90333.0,0.005]
[1731853659472,0.110689,90343.0,90333.0,0.005]
[1731853659675,0.10906255,90344.0,90333.0,0.005]
[1731853659889,0.110691,90341.0,90333.0,0.005]
[1731853660327,0.12089941,90341.0,90333.0,0.005]
[1731853661190,0.01020841,90341.0,90335.0,0.110697]
[1731853661412,0.01020841,90341.0,90333.0,0.115701]
[1731853661850,0.01020841,90341.0,90334.0,0.110699]
[1731853662059,0.01020841,90341.0,90333.0,0.005]
[1731853663153,0.01020841,90341.0,90333.0,0.115701]
[1731853663367,0.01020841,90341.0,90340.0,0.1115483]
[1731853663574,0.01020841,90341.0,90340.0,0.1993483]
[1731853664563,0.01020841,90341.0,90340.0,0.0886563]
[1731853664763,0.01020841,90341.0,90340.0,0.0836563]
[1731853665037,0.01020841,90341.0,90340.0,0.0008563]
[1731853665436,0.110686,90346.0,90340.0,0.0008563]
[1731853665652,0.0102293,90341.0,90340.0,0.0008563]
[1731853666785,0.1209203,90341.0,90340.0,0.0008563]
[1731853666987,0.25298285,90341.0,90340.0,0.0008563]
[1731853667210,0.35298285,90341.0,90340.0,0.0008563]
[1731853669096,0.36934826,90341.0,90340.0,0.0008563]
[1731853672800,0.25865726,90341.0,90340.0,0.0008563]
[1731853673039,0.36934826,90341.0,90340.0,0.0008563]
[1731853674064,0.25005641,90341.0,90340.0,0.0008563]
[1731853674964,0.01636541,90341.0,90340.0,0.0008563]
[1731853675186,0.11636541,90341.0,90340.0,0.0008563]
[1731853675870,0.1,90341.0,90340.0,0.0008563]
[1731853676084,0.210691,90341.0,90340.0,0.0008563]
[1731853676544,0.22705484,90341.0,90340.0,0.0008563]
[1731853676770,0.210691,90341.0,90340.0,0.0008563]
[1731853679720,0.21069,90343.0,90340.0,0.0008563]
[1731853679941,0.1,90341.0,90340.0,0.0058563]
[1731853680145,0.1,90343.0,90340.0,0.0848563]
[1731853680574,0.0017126,90342.0,90340.0,0.0848563]
[1731853680784,0.110691,90341.0,90340.0,0.0848563]
[1731853681007,0.210691,90341.0,90340.0,0.0848563]
[1731853681230,0.110691,90341.0,90340.0,0.0848563]
[1731853682539,0.12708501,90341.0,90340.0,0.0798563]
[1731853682765,0.01639401,90341.0,90330.0,0.005]
[1731853682998,0.110703,90331.0,90330.0,0.005]
[1731853683221,0.12709701,90331.0,90330.0,0.005]
[1731853684569,0.01639401,90331.0,90330.0,0.005]
[1731853684777,0.12709701,90331.0,90330.0,0.005]
[1731853685222,0.12709701,90331.0,90326.0,0.0008565]
[1731853685223,0.110708,90327.0,90326.0,0.0008565]
[1731853685647,0.110708,90327.0,90324.0,0.0008561]
[1731853685648,0.110711,90325.0,90324.0,0.0008561]
[1731853686113,0.110711,90325.0,90322.0,0.0008561]
[1731853686114,0.023,90324.0,90322.0,0.0008561]
[1731853686328,0.39014351,90323.0,90322.0,0.0008561]
[1731853687497,0.233717,90320.0,90319.0,0.29585609]
[1731853687751,0.36337312,90320.0,90319.0,0.29585609]
[1731853687954,0.39014751,90320.0,90319.0,0.29585609]
[1731853688191,0.42306829,90320.0,90319.0,0.29585609]
[1731853689018,0.31235129,90320.0,90319.0,0.24740283]
[1731853689227,0.42306829,90320.0,90319.0,0.24740283]
[1731853690070,0.44564868,90320.0,90319.0,0.24740283]
[1731853692711,0.45064868,90320.0,90319.0,0.24240283]
[1731853692925,0.99634868,90320.0,90319.0,0.24325923]
[1731853695276,0.99469423,90320.0,90300.0,4.114e-05]
[1731853695489,0.1671,90309.0,90299.0,0.14904485]
[1731853695713,0.007,90289.0,90288.0,1.80991833]
[1731853695931,0.32104374,90289.0,90288.0,1.53930579]
[1731853696140,0.43062675,90289.0,90288.0,1.19065697]
[1731853696356,0.97032675,90289.0,90288.0,1.00719756]
[1731853696548,0.97032675,90289.0,90288.0,0.80319656]
[1731853696834,1.33290505,90289.0,90288.0,0.24900777]
[1731853697079,1.29349908,90289.0,90288.0,0.15234445]
[1731853697311,1.35501483,90289.0,90288.0,0.15234445]
[1731853697529,1.25928482,90289.0,90288.0,0.04158445]
[1731853697749,1.25928482,90289.0,90286.0,0.13503597]
[1731853697750,0.240757,90287.0,90286.0,0.13503597]
[1731853697953,0.69747704,90287.0,90286.0,0.00623597]
[1731853698367,0.94286083,90287.0,90286.0,0.00623597]
[1731853698575,0.80453959,90287.0,90286.0,0.00623597]
[1731853698775,1.00087186,90287.0,90286.0,0.00623597]
[1731853699128,1.00054107,90287.0,90286.0,0.00623597]
[1731853699365,0.80419123,90287.0,90286.0,0.00623597]
[1731853699788,0.44161293,90287.0,90286.0,0.00623597]
[1731853699940,0.98731293,90287.0,90286.0,0.00623597]
[1731853700358,1.04882868,90287.0,90286.0,0.00623597]
[1731853700916,1.42279495,90287.0,90286.0,0.00623597]
[1731853701183,1.3612792,90287.0,90286.0,0.00623597]
[1731853701633,0.238762,90283.0,90260.0,0.16548346]
[1731853701862,0.80402357,90283.0,90260.0,0.16548346]
[1731853702067,0.44161793,90283.0,90260.0,0.16548346]
[1731853702291,0.238766,90280.0,90279.0,0.25237115]
[1731853702497,0.34782855,90280.0,90279.0,0.25237115]
[1731853702704,0.50313768,90280.0,90279.0,0.10653115]
[1731853702926,0.86561969,90280.0,90279.0,0.10653115]
[1731853703358,0.65029786,90280.0,90279.0,0.10653115]
[1731853703586,0.005,90277.0,90276.0,0.15622269]
[1731853703794,0.50314168,90277.0,90276.0,0.15622269]
[1731853704046,0.74945288,90277.0,90276.0,0.15622269]
[1731853704247,0.86022564,90277.0,90276.0,0.15622269]
[1731853704478,0.86022564,90277.0,90255.0,0.2]
[1731853704479,0.43223908,90275.0,90255.0,0.2]
[1731853704713,0.43223908,90275.0,90259.0,0.27372785]
[1731853704714,0.1,90269.0,90259.0,0.27372785]
[1731853704958,0.96883671,90260.0,90259.0,0.05943851]
[1731853705164,0.102,90256.0,90239.0,0.0008563]
[1731853705386,0.87628646,90250.0,90239.0,0.0008563]
[1731853705644,0.710815,90240.0,90239.0,0.0008563]
[1731853705899,0.210816,90239.0,90238.0,0.26020349]
[1731853706133,0.36597372,90239.0,90238.0,0.19783943]
[1731853706347,0.58171001,90239.0,90238.0,0.11997785]
[1731853706581,0.49803627,90239.0,90238.0,0.11997785]
[1731853706787,0.49803627,90239.0,90225.0,0.2]
[1731853706788,0.1,90238.0,90235.0,0.15592972]
[1731853707015,0.34288255,90236.0,90235.0,0.15592972]
[1731853707241,0.93027935,90236.0,90235.0,0.15592972]
[1731853707726,1.0392595,90236.0,90235.0,0.15592972]
[1731853707962,0.93019695,90236.0,90235.0,0.15592972]
[1731853708374,0.93019695,90236.0,90235.0,0.05891513]
[1731853709515,0.93015525,90236.0,90235.0,0.05891513]
[1731853709952,0.90715525,90236.0,90235.0,0.05891513]
[1731853710397,0.80715525,90236.0,90235.0,0.05891513]
[1731853711060,0.80715525,90236.0,90235.0,0.00902961]
[1731853711325,0.31340042,90236.0,90235.0,0.00902961]
[1731853711542,0.31340042,90236.0,90235.0,0.08412961]
[1731853712189,0.31340042,90236.0,90235.0,0.08912961]
[1731853712190,0.09351787,90236.0,90235.0,0.08912961]
[1731853712423,0.09351787,90236.0,90235.0,0.13802961]
[1731853712652,0.20433787,90236.0,90235.0,0.13993752]
[1731853712855,0.09351787,90236.0,90235.0,0.13993752]
[1731853713535,0.09351787,90236.0,90235.0,0.25575852]
[1731853714343,0.16548346,90249.0,90246.0,0.005]
[1731853714637,0.27628846,90249.0,90248.0,0.005]
[1731853714827,0.27628846,90249.0,90247.0,0.00187126]
[1731853714828,0.332418,90248.0,90247.0,0.00187126]
[1731853715049,0.11081,90244.0,90243.0,0.005]
[1731853715265,0.11081,90244.0,90241.0,0.005]
[1731853715266,0.110813,90242.0,90241.0,0.005]
[1731853715470,0.110815,90240.0,90239.0,0.005]
[1731853715682,0.11082,90236.0,90235.0,0.13302961]
[1731853715892,0.11774705,90236.0,90235.0,0.13302961]
[1731853716375,0.11774705,90236.0,90235.0,0.13488226]
[1731853716560,0.00692705,90236.0,90235.0,0.13802961]
[1731853716768,0.00692705,90236.0,90235.0,0.25156006]
[1731853716981,0.11946065,90236.0,90235.0,0.14073906]
[1731853717192,0.00864065,90236.0,90235.0,0.14073906]
[1731853717654,0.00864065,90236.0,90235.0,0.25156006]
[1731853718944,0.08848346,90249.0,90248.0,0.115805]
[1731853719359,0.110795,90257.0,90252.0,0.005]
[1731853719563,0.1,90256.0,90252.0,0.005]
[1731853719785,0.1,90256.0,90250.0,0.110802]
[1731853720011,0.1,90256.0,90249.0,0.110804]
[1731853720215,0.1,90256.0,90241.0,0.223626]
[1731853720216,0.1,90254.0,90251.0,0.00186013]
[1731853720433,0.1,90256.0,90252.0,0.1108]
[1731853720659,0.210796,90256.0,90252.0,0.00185452]
[1731853720854,0.1,90256.0,90252.0,0.00185452]
[1731853721083,0.1,90256.0,90241.0,0.223626]
[1731853721084,0.1,90256.0,90251.0,0.221603]
[1731853721298,0.1,90257.0,90253.0,0.00185639]
[1731853721538,0.023,90262.0,90254.0,0.0796]
[1731853721752,0.110792,90259.0,90255.0,0.0466]
[1731853721985,0.110795,90256.0,90255.0,0.04844189]
[1731853722188,0.110795,90256.0,90255.0,0.00184189]
[1731853722189,0.34285755,90256.0,90255.0,0.00184189]
[1731853722403,0.110814,90241.0,90240.0,0.1262]
[1731853722815,0.110814,90241.0,90240.0,0.1282914]
[1731853723037,0.110814,90241.0,90240.0,0.1262]
[1731853723253,0.110814,90241.0,90240.0,0.1282914]
[1731853723469,0.1278947,90241.0,90240.0,0.1282914]
[1731853723691,0.110814,90241.0,90240.0,0.1282914]
[1731853724377,0.12724834,90241.0,90240.0,0.1282914]
[1731853725205,0.12724834,90241.0,90240.0,0.0020914]
[1731853725636,0.11082,90236.0,90231.0,0.000856]
[1731853725820,0.12725434,90236.0,90231.0,0.000856]
[1731853726190,0.01643434,90236.0,90231.0,0.000856]
[1731853726391,0.13754248,90236.0,90231.0,0.000856]
[1731853726806,0.24660503,90236.0,90231.0,0.000856]
[1731853727010,0.26960503,90236.0,90231.0,0.000856]
[1731853727328,0.29018167,90236.0,90231.0,0.000856]
[1731853728123,0.39710957,90236.0,90231.0,0.000856]
[1731853728385,0.210825,90232.0,90231.0,0.000856]
[1731853728592,0.39711457,90232.0,90231.0,0.000856]
[1731853728804,0.39711457,90232.0,90231.0,0.00296714]
[1731853729011,0.3971153,90232.0,90231.0,0.000856]
[1731853729225,0.3901874,90232.0,90231.0,0.000856]
[1731853729654,0.82242648,90232.0,90231.0,0.000856]
[1731853729873,0.82742648,90232.0,90231.0,0.000856]
[1731853730279,0.80684911,90232.0,90231.0,0.000856]
[1731853730517,0.8361235,90232.0,90231.0,0.000856]
[1731853730740,0.8361235,90232.0,90228.0,0.30085609]
[1731853730741,0.110829,90229.0,90228.0,0.27676799]
[1731853730970,0.80185311,90229.0,90228.0,0.27676799]
[1731853731191,0.80185311,90229.0,90228.0,0.27888007]
[1731853731395,0.82242049,90229.0,90228.0,0.27888007]
[1731853733420,0.80186337,90229.0,90228.0,0.27888007]
[1731853734062,0.69103437,90229.0,90228.0,0.27888007]
[1731853734266,0.80186337,90229.0,90228.0,0.27888007]
[1731853735156,0.78541245,90229.0,90228.0,0.27888007]
[1731853735563,0.76241245,90229.0,90228.0,0.27888007]
[1731853736911,0.78541245,90229.0,90228.0,0.27888007]
[1731853737143,0.80185443,90229.0,90228.0,0.27888007]
[1731853737368,0.97491152,90229.0,90228.0,0.27888007]
[1731853737601,0.96991152,90229.0,90228.0,0.24423386]
[1731853737800,0.82240637,90229.0,90228.0,0.24423386]
[1731853738461,1.21886325,90229.0,90228.0,0.24423386]
[1731853738664,1.41553679,90229.0,90228.0,0.24423386]
[1731853738870,1.21886325,90229.0,90228.0,0.24423386]
[1731853739085,0.85529638,90229.0,90228.0,0.24423386]
[1731853739291,1.21890157,90229.0,90228.0,0.24423386]
[1731853739526,1.22390157,90229.0,90228.0,0.24423386]
[1731853739737,1.22390157,90229.0,90225.0,0.1719246]
[1731853739738,0.110832,90226.0,90225.0,0.1719246]
[1731853739958,0.66963694,90226.0,90225.0,0.1719246]
[1731853740166,0.78666549,90226.0,90225.0,0.1719246]
[1731853740385,1.04709396,90226.0,90225.0,0.12203208]
[1731853741011,0.80098707,90226.0,90225.0,0.12203208]
[1731853741472,0.78712804,90226.0,90225.0,0.12203208]
[1731853741977,0.79212804,90226.0,90225.0,0.12203208]
[1731853743254,1.22436712,90226.0,90225.0,0.12203208]
[1731853743456,0.233841,90219.0,90218.0,0.29999999]
[1731853743659,0.52163612,90219.0,90218.0,0.29999999]
[1731853743883,0.42309253,90219.0,90218.0,0.29999999]
[1731853744065,0.52162498,90219.0,90218.0,0.29999999]
[1731853744297,0.52855519,90219.0,90218.0,0.29999999]
[1731853744452,0.43002274,90219.0,90218.0,0.29999999]
[1731853744660,0.52855519,90219.0,90218.0,0.29999999]
[1731853745072,0.95886406,90219.0,90218.0,0.29999999]
[1731853745419,0.86033161,90219.0,90218.0,0.29999999]
[1731853745574,0.86033161,90219.0,90218.0,0.27505027]
[1731853745990,0.86033161,90219.0,90218.0,0.2771053]
[1731853746153,0.95867701,90219.0,90218.0,0.2771053]
[1731853746363,0.95866845,90219.0,90218.0,0.2771053]
[1731853746559,0.90525847,90219.0,90218.0,0.2771053]
[1731853746789,0.86013837,90219.0,90218.0,0.2771053]
[1731853747244,0.86013837,90219.0,90189.0,0.005]
[1731853747245,0.31011702,90218.0,90215.0,0.03109306]
[1731853747446,0.243853,90209.0,90208.0,0.22533215]
[1731853747652,0.81000665,90209.0,90208.0,0.22533215]
[1731853747814,1.05602224,90209.0,90208.0,0.22533215]
[1731853748012,1.36613926,90209.0,90208.0,0.22533215]
[1731853748293,1.12705556,90209.0,90208.0,0.17680886]
[1731853748504,1.19487977,90209.0,90208.0,0.16596338]
[1731853748703,1.19687977,90209.0,90208.0,0.16596338]
[1731853748926,0.110857,90206.0,90205.0,0.1876687]
[1731853749076,0.44370785,90206.0,90205.0,0.1526687]
[1731853749441,0.64037058,90206.0,90205.0,0.05562003]
[1731853749652,0.80694254,90206.0,90205.0,0.05562003]
[1731853750286,0.80694254,90206.0,90198.0,0.05657983]
[1731853750287,0.110865,90199.0,90198.0,0.05657983]
[1731853750479,0.110869,90196.0,90188.0,0.30085609]
[1731853750683,0.32071985,90196.0,90188.0,0.30085609]
[1731853751143,0.42071985,90196.0,90188.0,0.30085609]
[1731853751347,0.42071985,90196.0,90195.0,0.1668561]
[1731853751348,0.73083687,90196.0,90195.0,0.1668561]
[1731853751568,0.87826494,90196.0,90195.0,0.1668561]
[1731853751771,0.77485508,90196.0,90195.0,0.1668561]
[1731853751972,0.92227537,90196.0,90195.0,0.1668561]
[1731853752152,0.77485508,90196.0,90195.0,0.1668561]
[1731853752384,0.79785508,90196.0,90195.0,0.1668561]
[1731853752605,0.80941571,90196.0,90195.0,0.1668561]
[1731853756068,0.7422253,90196.0,90195.0,0.1668561]
[1731853756301,0.80933272,90196.0,90195.0,0.1668561]
[1731853756522,0.4992157,90196.0,90195.0,0.1668561]
[1731853756774,0.4982157,90196.0,90195.0,0.1668561]
[1731853757606,0.4982157,90196.0,90195.0,0.1688561]
[1731853757755,0.5425647,90196.0,90195.0,0.1688561]
[1731853758166,0.4982157,90196.0,90195.0,0.2499561]
[1731853758362,0.46365507,90196.0,90195.0,0.2549561]
[1731853758936,0.11779857,90196.0,90195.0,0.3051561]
[1731853759345,0.10070531,90196.0,90195.0,0.30727474]
[1731853760014,0.2178027,90196.0,90195.0,0.14127474]
[1731853760460,0.10070531,90196.0,90195.0,0.13927474]
[1731853760701,0.044338,90221.0,90220.0,0.005]
[1731853760917,0.04544625,90218.0,90216.0,0.00338005]
[1731853761163,0.32167765,90237.0,90224.0,0.002]
[1731853761164,0.111834,90225.0,90224.0,0.002]
[1731853761380,0.111834,90225.0,90216.0,0.00338005]
[1731853761381,0.001,90225.0,90220.0,0.00338005]
[1731853761586,0.001,90225.0,90214.0,0.0452]
[1731853761587,0.001,90225.0,90216.0,0.00338005]
[1731853761810,0.001,90225.0,90220.0,0.00538005]
[1731853761811,0.110838,90221.0,90220.0,0.00538005]
[1731853762040,0.109838,90221.0,90220.0,0.00538005]
[1731853762387,0.109838,90221.0,90217.0,0.00208873]
[1731853762388,0.001,90225.0,90224.0,0.00538005]
[1731853762607,0.001,90225.0,90224.0,0.05058005]
[1731853762814,0.16548346,90251.0,90250.0,0.00538005]
[1731853763040,0.16548346,90251.0,90250.0,0.05058005]
[1731853763273,0.0017132,90252.0,90251.0,0.00338005]
[1731853763527,0.0017132,90252.0,90251.0,0.11618205]
[1731853763761,0.16548346,90258.0,90257.0,0.12117405]
[1731853763975,0.110782,90268.0,90262.0,0.110788]
[1731853764218,0.16548346,90271.0,90270.0,0.00538005]
[1731853764441,0.36362795,90302.0,90263.0,0.221573]
[1731853764442,0.27624446,90284.0,90283.0,0.00538005]
[1731853764662,0.49776846,90284.0,90283.0,0.00538005]
[1731853764862,0.332285,90284.0,90283.0,0.00538005]
[1731853765499,0.332285,90284.0,90283.0,0.00338005]
[1731853765708,0.332285,90284.0,90283.0,0.00538005]
[1731853765709,0.110761,90284.0,90283.0,0.00538005]
[1731853765933,0.110757,90287.0,90286.0,0.00538005]
[1731853766168,0.110753,90291.0,90290.0,0.00538005]
[1731853766388,0.221482,90301.0,90299.0,0.00538005]
[1731853766389,0.110741,90300.0,90299.0,0.00538005]
[1731853766606,0.21980355,90300.0,90299.0,0.00538005]
[1731853766830,0.221475,90304.0,90290.0,0.00196883]
[1731853766831,0.221474,90304.0,90301.0,0.00538005]
[1731853767029,0.332211,90304.0,90303.0,0.00538005]
[1731853767457,0.110737,90304.0,90303.0,0.00538005]
[1731853767698,0.26546104,90312.0,90300.0,0.047]
[1731853767699,0.26546104,90312.0,90304.0,0.00538005]
[1731853767933,0.221452,90313.0,90304.0,0.00538005]
[1731853768155,0.110728,90312.0,90304.0,0.11796809]
[1731853768356,0.27620746,90315.0,90304.0,0.00744557]
[1731853768567,0.27620746,90315.0,90314.0,0.00338005]
[1731853768791,0.11072,90318.0,90314.0,0.00338005]
[1731853769041,0.221437,90319.0,90316.0,0.00538005]
[1731853769287,0.1124352,90317.0,90316.0,0.00538005]
[1731853769725,0.11077675,90317.0,90301.0,0.002]
[1731853769933,0.11077675,90317.0,90295.0,0.00538005]
[1731853769934,0.110746,90296.0,90295.0,0.00538005]
[1731853770218,0.210746,90296.0,90295.0,0.00338005]
[1731853770467,0.110748,90295.0,90294.0,0.00338005]
[1731853771388,0.21981055,90295.0,90294.0,0.00338005]
[1731853771593,0.21981055,90295.0,90280.0,0.21248346]
[1731853771594,0.39754601,90295.0,90280.0,0.047]
[1731853771830,0.023,90275.0,90265.0,0.16548346]
[1731853772039,0.210783,90266.0,90265.0,0.16548346]
[1731853772266,0.233783,90266.0,90265.0,0.16548346]
[1731853772481,0.210795,90256.0,90255.0,0.16548346]
[1731853772923,0.210795,90256.0,90255.0,0.00338005]
[1731853772924,0.20906255,90256.0,90255.0,0.00338005]
[1731853773148,0.54144955,90256.0,90255.0,0.00338005]
[1731853773375,0.55160886,90256.0,90255.0,0.00338005]
[1731853773625,0.22095431,90256.0,90255.0,0.00538005]
[1731853773851,0.01627204,90263.0,90245.0,0.16548346]
[1731853773852,0.11015544,90263.0,90262.0,0.00338005]
[1731853774059,0.48533301,90263.0,90262.0,0.00338005]
[1731853774279,0.33000499,90263.0,90262.0,0.00338005]
[1731853774493,0.33000499,90263.0,90262.0,0.00538005]
[1731853774749,0.01015544,90264.0,90263.0,0.00538005]
[1731853774954,0.110786,90264.0,90263.0,0.00538005]
[1731853775130,0.01015544,90270.0,90269.0,0.00338005]
[1731853775348,0.01015544,90270.0,90269.0,0.00538005]
[1731853775349,0.31984055,90270.0,90269.0,0.00538005]
[1731853775567,0.210778,90270.0,90269.0,0.00538005]
[1731853778804,0.31984055,90270.0,90269.0,0.00538005]
[1731853779032,0.20906255,90270.0,90269.0,0.00538005]
[1731853779166,0.31984055,90270.0,90269.0,0.00538005]
[1731853780186,0.31984055,90270.0,90245.0,0.16548346]
[1731853780187,0.123,90269.0,90264.0,0.002]
[1731853780388,0.110789,90261.0,90260.0,0.002]
[1731853780736,0.110791,90260.0,90259.0,0.002]
[1731853780933,0.21985355,90260.0,90259.0,0.002]
[1731853781161,0.21985355,90260.0,90259.0,0.0044182]
[1731853781428,0.21985355,90260.0,90259.0,0.00338005]
[1731853781860,0.21885355,90260.0,90259.0,0.00338005]
[1731853782067,0.21885355,90260.0,90259.0,0.00538005]
[1731853782782,0.21885355,90260.0,90259.0,0.00338005]
[1731853783337,0.22900798,90260.0,90259.0,0.00338005]
[1731853783538,0.22900798,90260.0,90259.0,0.00538005]
[1731853783737,0.22900798,90260.0,90259.0,0.00338005]
[1731853784001,0.22900798,90260.0,90175.0,0.2]
[1731853784002,0.138867,90198.0,90175.0,0.2]
[1731853784246,0.24902143,90198.0,90175.0,0.2]
[1731853784489,0.005,90189.0,90188.0,0.2574003]
[1731853784697,0.005,90189.0,90188.0,0.25856024]
[1731853784698,0.55917448,90189.0,90188.0,0.25856024]
[1731853784902,0.57953371,90189.0,90188.0,0.25856024]
[1731853785113,0.58453371,90189.0,90188.0,0.25856024]
[1731853785352,0.57953371,90189.0,90188.0,0.25856024]
[1731853786622,0.26941669,90189.0,90188.0,0.25856024]
[1731853786838,0.238878,90189.0,90188.0,0.25856024]
[1731853787503,0.24905746,90189.0,90188.0,0.25856024]
[1731853787736,0.238878,90189.0,90188.0,0.25856024]
[1731853787921,0.24905768,90189.0,90188.0,0.25856024]
[1731853788374,0.34794055,90189.0,90188.0,0.25856024]
[1731853788541,0.35812023,90189.0,90188.0,0.25856024]
[1731853788930,0.35812023,90189.0,90188.0,0.2565431]
[1731853788931,0.67323725,90189.0,90188.0,0.2565431]
[1731853789129,0.87620243,90189.0,90188.0,0.2565431]
[1731853789263,0.77619662,90189.0,90188.0,0.1456631]
[1731853789466,0.77619662,90189.0,90175.0,0.2]
[1731853789467,0.248881,90186.0,90175.0,0.2]
[1731853789686,0.99969873,90186.0,90175.0,0.2]
[1731853789893,1.49688939,90186.0,90175.0,0.2]
[1731853790472,0.99188939,90186.0,90175.0,0.2]
[1731853790674,0.97039408,90186.0,90175.0,0.2]
[1731853790895,0.99683579,90186.0,90175.0,0.2]
[1731853791130,1.49683579,90186.0,90185.0,0.177823]
[1731853791396,1.54117613,90186.0,90185.0,0.177823]
[1731853791670,1.02730905,90186.0,90185.0,0.177823]
[1731853793906,0.91642805,90186.0,90185.0,0.177823]
[1731853794105,1.01103723,90186.0,90185.0,0.177823]
[1731853794310,1.02686605,90186.0,90185.0,0.177823]
[1731853795212,0.94754089,90186.0,90185.0,0.177823]
[1731853795357,1.02663649,90186.0,90185.0,0.177823]
[1731853795730,1.02163649,90186.0,90185.0,0.177823]
[1731853796158,1.02663649,90186.0,90185.0,0.177823]
[1731853796579,1.05907497,90186.0,90185.0,0.177823]
[1731853796796,1.02663649,90186.0,90185.0,0.177823]
[1731853797005,1.05907573,90186.0,90185.0,0.177823]
[1731853797222,1.05907573,90186.0,90175.0,0.2]
[1731853797223,0.51,90179.0,90175.0,0.2]
[1731853797429,0.51,90179.0,90158.0,0.29999999]
[1731853797430,0.015,90166.0,90165.0,0.06968701]
[1731853797631,0.015,90166.0,90158.0,0.07149052]
[1731853797632,0.650915,90159.0,90158.0,0.07149052]
[1731853797835,1.66874554,90159.0,90158.0,0.0570209]
[1731853798252,1.95555729,90159.0,90158.0,0.0420209]
[1731853798458,0.748927,90149.0,90148.0,0.27959091]
[1731853798667,1.04934229,90149.0,90148.0,0.27959091]
[1731853798891,1.04934229,90149.0,90148.0,0.25740491]
[1731853799095,1.04934229,90149.0,90148.0,0.23243172]
[1731853799295,1.01893165,90149.0,90148.0,0.23243172]
[1731853799703,1.06455774,90149.0,90148.0,0.23243172]
[1731853800881,1.06455774,90149.0,90148.0,0.21024572]
[1731853801539,0.99795513,90149.0,90148.0,0.21024572]
[1731853801746,1.96934444,90149.0,90148.0,0.07467315]
[1731853801951,0.125937,90141.0,90137.0,0.0008568]
[1731853802161,0.5189658,90141.0,90137.0,0.0008568]
[1731853802366,0.5189658,90141.0,90092.0,0.16631832]
[1731853802514,0.5189658,90141.0,90088.0,0.0482]
[1731853802515,0.111001,90089.0,90088.0,0.0482]
[1731853802731,0.37409314,90089.0,90088.0,0.0482]
[1731853802934,0.26309214,90089.0,90088.0,0.0482]
[1731853803208,0.3810298,90089.0,90088.0,0.0482]
[1731853803343,0.26309214,90089.0,90088.0,0.0482]
[1731853803780,0.26309214,90089.0,90084.0,0.02686717]
[1731853803991,0.42941046,90088.0,90084.0,0.02686717]
[1731853804201,0.15402959,90087.0,90084.0,0.02686717]
[1731853804469,0.2700288,90086.0,90084.0,0.02686717]
[1731853804639,0.14230899,90086.0,90085.0,0.111006]
[1731853804852,0.26951112,90086.0,90084.0,0.02686717]
[1731853805039,0.39445457,90085.0,90084.0,0.02686717]
[1731853805248,0.023,90083.0,90077.0,0.025]
[1731853805445,0.1,90081.0,90077.0,0.025]
[1731853805775,0.26951112,90080.0,90079.0,0.111013]
[1731853805967,0.26257299,90080.0,90077.0,0.025]
[1731853806192,0.16631832,90078.0,90077.0,0.025]
[1731853806359,0.42889131,90078.0,90077.0,0.025]
[1731853806982,0.36818103,90078.0,90077.0,0.211816]
[1731853807155,0.15350763,90078.0,90077.0,0.211816]
[1731853808290,0.16044576,90078.0,90077.0,0.211816]
[1731853808505,0.15350763,90078.0,90077.0,0.211816]
[1731853808904,0.07650763,90078.0,90077.0,0.14242806]
[1731853809263,0.08344576,90078.0,90077.0,0.14242806]
[1731853809695,0.02273829,90078.0,90077.0,0.14242806]
[1731853810330,0.01580016,90078.0,90077.0,0.14242806]
[1731853811856,0.01480016,90078.0,90077.0,0.14242806]
[1731853812169,0.02173822,90078.0,90077.0,0.14242806]
[1731853812404,0.16631832,90098.0,90091.0,0.005]
[1731853812619,0.16631832,90098.0,90095.0,0.221987]
[1731853812620,0.06108568,90097.0,90095.0,0.221987]
[1731853812830,0.16631832,90098.0,90095.0,0.221987]
[1731853812831,0.16631832,90098.0,90097.0,0.234991]
[1731853813403,0.16631832,90098.0,90055.0,0.005]
[1731853813404,0.03821832,90069.0,90055.0,0.005]
[1731853813631,0.16631832,90079.0,90035.0,0.222133]
[1731853813632,0.00721966,90078.0,90068.0,0.16631832]
[1731853813840,0.00721966,90078.0,90048.0,0.16631832]
[1731853813841,0.111031,90065.0,90050.0,0.041663]
[1731853814046,0.222042,90073.0,90054.0,0.111044]
[1731853814286,0.17131832,90077.0,90050.0,0.036663]
[1731853814287,0.16631832,90065.0,90050.0,0.036663]
[1731853814516,0.222074,90060.0,90050.0,0.036663]
[1731853814728,0.11128221,90059.0,90050.0,0.036663]
[1731853814943,0.10906255,90059.0,90050.0,0.036663]
[1731853815184,0.22206,90066.0,90050.0,0.036663]
[1731853815185,0.005,90070.0,90050.0,0.036663]
[1731853815424,0.16631832,90061.0,90050.0,0.036663]
[1731853815697,0.111044,90054.0,90050.0,0.036663]
[1731853815921,0.10906255,90060.0,90050.0,0.036663]
[1731853815922,0.33115555,90053.0,90050.0,0.036663]
[1731853816126,0.22010755,90053.0,90050.0,0.036663]
[1731853816330,0.110048,90051.0,90050.0,0.036663]
[1731853816533,0.21911055,90051.0,90050.0,0.036663]
[1731853816733,0.005,90066.0,90050.0,0.041663]
[1731853816949,0.28926268,90065.0,90050.0,0.041663]
[1731853817160,0.222066,90063.0,90050.0,0.041663]
[1731853817384,0.222071,90061.0,90050.0,0.041663]
[1731853817607,0.01388181,90060.0,90050.0,0.036663]
[1731853817824,0.111042,90056.0,90050.0,0.036663]
[1731853818030,0.01388181,90055.0,90050.0,0.036663]
[1731853818275,0.22011055,90051.0,90050.0,0.036663]
[1731853818489,1.04311202,90051.0,90050.0,0.01167254]
[1731853818712,0.123053,90047.0,90046.0,7e-05]
[1731853818935,0.91691702,90047.0,90046.0,7e-05]
[1731853819164,0.94232079,90047.0,90046.0,7e-05]
[1731853819379,0.94232079,90047.0,90040.0,0.0181281]
[1731853819380,0.11806,90041.0,90040.0,0.00754404]
[1731853819633,0.39884745,90041.0,90040.0,0.00754404]
[1731853819869,0.211065,90037.0,90036.0,0.23142617]
[1731853820075,0.43485663,90037.0,90036.0,0.23142617]
[1731853820285,0.43485663,90037.0,90036.0,0.23330415]
[1731853820499,0.44179983,90037.0,90036.0,0.23330415]
[1731853820710,0.43979983,90037.0,90036.0,0.23330415]
[1731853820938,0.33407075,90037.0,90036.0,0.23330415]
[1731853821190,0.35443669,90037.0,90036.0,0.23330415]
[1731853821839,0.38706012,90037.0,90036.0,0.23330415]
[1731853822490,0.43588632,90037.0,90036.0,0.23330415]